fUST/lending_fUST_20250702
["ID","MTS","AMOUNT","RATE_DAILY","PERIOD"]
[368980458,1751422242518,-843.87,0.00021842,2]
[368980459,1751422242530,-150.0,0.00021917,2]
[368980460,1751422242541,-150.16164885,0.00021918,2]
[368980461,1751422242552,-3935.76,0.00022,7]
[368980462,1751422242562,-503.73,0.00022,7]
[368980463,1751422242572,-703.99782774,0.00022038,6]
[368980465,1751422242582,-777.9,0.00022066,2]
[368980466,1751422242593,-888.37,0.00022066,2]
[368980468,1751422242604,-460.0,0.00022066,2]
[368980472,1751422242616,-460.0,0.00022066,2]
[368980474,1751422242628,-1104.28,0.00022066,2]
[368980476,1751422242640,-512.5,0.00022066,2]
[368980478,1751422242651,-693.01,0.00022066,2]
[368980481,1751422242662,-460.0,0.00022066,2]
[368980483,1751422242672,-727.6,0.00022066,2]
[368980485,1751422242683,-460.0,0.00022116,2]
[368980487,1751422242693,-843.87,0.00022116,2]
[368980489,1751422242704,-196.90230409,0.000222,69]
[368980492,1751422242716,-150.0,0.000223,2]
[368980494,1751422242727,-703.99782774,0.00022314,7]
[368980496,1751422242739,-777.9,0.0002234,2]
[368980498,1751422242749,-888.37,0.0002234,2]
[368980500,1751422242759,-455.69472163,0.0002234,2]
[368980502,1751422242770,-460.0,0.0002234,2]
[368980504,1751422242781,-1104.28,0.0002234,2]
[368980507,1751422242792,-512.5,0.0002234,2]
[368980509,1751422242803,-693.01,0.0002234,2]
[368980511,1751422242814,-184.88265808,0.0002234,2]
[368980513,1751422242824,-727.6,0.0002234,2]
[368980515,1751422242835,-460.0,0.0002239,2]
[368980518,1751422242846,-843.87,0.0002239,2]
[368980520,1751422242856,-207.4,0.00022474,2]
[368980522,1751422242867,-690.642,0.00022474,2]
[368980524,1751422242877,-500.0,0.00022474,2]
[368980526,1751422242888,-5000.0,0.00022474,2]
[368980528,1751422242900,-500.0,0.00022474,2]
[368980530,1751422242910,-500.0,0.00022474,2]
[368980533,1751422242921,-500.0,0.00022474,2]
[368980535,1751422242932,-155.258224,0.00022474,2]
[368980537,1751422242943,-500.0,0.00022474,2]
[368980539,1751422242954,-500.0,0.00022474,2]
[368980541,1751422242964,-500.0,0.00022474,2]
[368980543,1751422242976,-500.0,0.00022474,2]
[368980546,1751422242987,-500.0,0.00022474,2]
[368980548,1751422242997,-500.0,0.00022474,2]
[368980550,1751422243008,-500.0,0.00022474,2]
[368980552,1751422243018,-500.0,0.00022474,2]
[368980554,1751422243032,-500.0,0.00022474,2]
[368980556,1751422243042,-500.0,0.00022474,2]
[368980558,1751422243053,-500.0,0.00022474,2]
[368980560,1751422243065,-822.2401003,0.00022484,2]
[368980563,1751422243077,-716.195754,0.00022529,2]
[368980565,1751422243089,-742.6949969,0.00022584,2]
[368980567,1751422243102,-703.99782774,0.0002259,7]
[368980569,1751422243114,-777.9,0.00022614,2]
[368980572,1751422243126,-888.37,0.00022614,2]
[368980574,1751422243138,-472.40464506,0.00022614,2]
[368980576,1751422243150,-1104.28,0.00022614,2]
[368980578,1751422243161,-512.5,0.00022614,2]
[368980580,1751422243172,-693.01,0.00022614,2]
[368980582,1751422243184,-727.6,0.00022614,2]
[368980584,1751422243195,-770.17471178,0.00022639,2]
[368980587,1751422243207,-461.8444152,0.00022664,2]
[368980589,1751422243218,-843.87,0.00022664,2]
[368980591,1751422243230,-798.67117612,0.00022694,2]
[368980593,1751422243241,-579.37,0.000227,7]
[368980595,1751422243251,-165.48870318,0.00022749,2]
[368980597,1751422243263,-372.18106734,0.0002277,2]
[368980599,1751422243276,-1000.0,0.000228,5]
[368980601,1751422243287,-1000.0,0.000228,6]
[368980603,1751422243298,-703.99782774,0.00022866,8]
[368980621,1751422243457,-777.9,0.00022888,2]
[368980624,1751422243475,-888.37,0.00022888,2]
[368980626,1751422243486,-1104.28,0.00022888,2]
[368980628,1751422243495,-512.5,0.00022888,2]
[368980630,1751422243505,-693.01,0.00022888,2]
[368980632,1751422243516,-727.6,0.00022888,2]
[368980634,1751422243527,-843.87,0.00022938,2]
[368980636,1751422243537,-5000.0,0.00023022,2]
[368980638,1751422243546,-2761.6899922,0.00023045,2]
[368980640,1751422243555,-822.24010028,0.00023065,2]
[368980642,1751422243565,-703.99782774,0.00023141,8]
[368980644,1751422243574,-777.9,0.00023162,2]
[368980646,1751422243584,-888.37,0.00023162,2]
[368980648,1751422243593,-1104.28,0.00023162,2]
[368980650,1751422243602,-512.5,0.00023162,2]
[368980652,1751422243612,-693.01,0.00023162,2]
[368980654,1751422243621,-727.6,0.00023162,2]
[368980656,1751422243631,-844.06216586,0.00023212,2]
[368980658,1751422243641,-371.5985199,0.0002326,2]
[368980660,1751422243651,-366.3581911,0.00023288,2]
[368980662,1751422243661,-366.3581911,0.00023288,2]
[368980663,1751422243671,-366.3581911,0.00023288,2]
[368980664,1751422243680,-364.6413837,0.00023288,2]
[368980665,1751422243690,-366.235562,0.00023288,2]
[368980666,1751422243700,-170.0,0.00023353,2]
[368980667,1751422243709,-703.99782774,0.00023417,9]
[368980668,1751422243718,-777.95541706,0.00023436,2]
[368980669,1751422243727,-888.37421965,0.00023436,2]
[368980670,1751422243736,-1104.43013758,0.00023436,2]
[368980671,1751422243745,-512.6873916,0.00023436,2]
[368980672,1751422243753,-693.15416625,0.00023436,2]
[368980673,1751422243760,-727.63817104,0.00023436,2]
[368980674,1751422243766,-1000.0,0.000235,2]
[368980675,1751422243775,-1000.0,0.000235,2]
[368980676,1751422243785,-1102.87,0.000235,2]
[368980677,1751422243794,-1000.0,0.000235,2]
[368980678,1751422243803,-1000.0,0.000235,2]
[368980679,1751422243812,-1000.0,0.000235,2]
[368980680,1751422243821,-170.0,0.000235,2]
[368980681,1751422243831,-5000.0,0.0002357,2]
[368980682,1751422243840,-822.24010028,0.00023646,2]
[368980683,1751422243849,-703.99782774,0.00023693,9]
[368980684,1751422243859,-170.0,0.00023718,2]
[368980685,1751422243868,-3935.76,0.000238,7]
[368980686,1751422243877,-503.73,0.000238,7]
[368980687,1751422243887,-1000.0,0.000238,7]
[368980688,1751422243898,-412.82,0.000238,8]
[368980689,1751422243910,-215.0738,0.00023843,2]
[368980690,1751422243921,-372.18106734,0.00023908,2]
[368980691,1751422243931,-703.99782774,0.00023969,10]
[368980692,1751422243941,-1000.0,0.00024,2]
[368980693,1751422243950,-1000.0,0.00024,2]
[368980694,1751422243961,-1000.0,0.00024,2]
[368980695,1751422243971,-1000.0,0.00024,2]
[368980696,1751422243980,-1000.0,0.00024,2]
[368980697,1751422243989,-1000.0,0.00024,2]
[368980699,1751422244003,-1000.0,0.00024,2]
[368980700,1751422244012,-1000.0,0.00024,2]
[368980701,1751422244021,-1000.0,0.00024,2]
[368980702,1751422244031,-1000.0,0.00024,2]
[368980703,1751422244040,-1000.0,0.00024,2]
[368980704,1751422244049,-1000.0,0.00024,2]
[368980705,1751422244059,-1000.0,0.00024,2]
[368980706,1751422244068,-1000.0,0.00024,2]
[368980707,1751422244077,-1000.0,0.00024,2]
[368980708,1751422244087,-1000.0,0.00024,2]
[368980709,1751422244096,-1000.0,0.00024,2]
[368980710,1751422244106,-524.6887252,0.00024,3]
[368980711,1751422244115,-524.6887252,0.00024,3]
[368980712,1751422244125,-215.04179405,0.00024,7]
[368980713,1751422244135,-837.27862799,0.00024,7]
[368980714,1751422244145,-230.34465076,0.00024,7]
[368980715,1751422244155,-407.852,0.00024065,2]
[368980716,1751422244165,-822.24010028,0.00024226,2]
[368980717,1751422244178,-703.99782774,0.00024245,10]
[368980718,1751422244190,-2608.85621744,0.00024309,2]
[368980719,1751422244200,-411.646364,0.00024351,2]
[368980720,1751422244209,-670.59059892,0.00024384,2]
[368980721,1751422244218,-2608.85621744,0.00024456,2]
[368980722,1751422244228,-703.99782774,0.00024521,11]
[368980723,1751422244237,-585.51,0.000246,2]
[368980724,1751422244247,-212.8386663,0.00024637,7]
[368980725,1751422244256,-300.0,0.00024657,4]
[368980726,1751422244265,-170.0,0.00024691,2]
[368980727,1751422244274,-666.618711,0.00024702,4]
[368980728,1751422244283,-369.16,0.0002479,10]
[368980729,1751422244292,-170.0,0.00024793,2]
[368980730,1751422244302,-703.99782774,0.00024797,11]
[368980731,1751422244311,-1000.0,0.000248,2]
[368980732,1751422244320,-1000.0,0.000248,2]
[368980733,1751422244330,-1000.0,0.000248,2]
[368980734,1751422244339,-1000.0,0.000248,2]
[368980735,1751422244349,-1000.0,0.000248,2]
[368980736,1751422244360,-1000.0,0.000248,2]
[368980737,1751422244369,-1000.0,0.000248,2]
[368980738,1751422244379,-1000.0,0.000248,2]
[368980739,1751422244388,-1000.0,0.000248,2]
[368980740,1751422244399,-1000.0,0.000248,2]
[368980741,1751422244409,-237903.38069436,0.000248,2]
[368980742,1751422244455,-755.0017425,0.000248,2]
[368980743,1751422244466,-318.26,0.000248,2]
[368980754,1751422393819,204.96285682,0.0001662,2]
[368980755,1751422460150,8056.7876935,0.00016271,2]
[368980757,1751422468490,266.598129,0.00013699,2]
[368980758,1751422480395,5000.0,0.000168,2]
[368980759,1751422496728,-177.4536902,0.00017034,2]
[368980760,1751422527633,224.3287808,0.00016401,2]
[368980761,1751422539748,5000.0,0.000168,2]
[368980762,1751422555086,1337.75542207,0.000168,2]
[368980763,1751422566017,47.62,0.000255,120]
[368980764,1751422566040,465.0,0.000255,120]
[368980765,1751422566061,200.0,0.000255,120]
[368980766,1751422566082,287.38,0.000255,120]
[368980767,1751422582609,112.62,0.000255,120]
[368980780,1751422600521,3830.91599656,0.0001833,6]
[368980781,1751422603117,-439.06288375,0.00017132,2]
[368980782,1751422603145,-500.0,0.00017132,2]
[368980783,1751422603170,-432.47082773,0.00017132,2]
[368980784,1751422603193,-500.0,0.00017132,2]
[368980785,1751422603219,-501.67903455,0.00017132,2]
[368980786,1751422603245,-500.0,0.00017132,2]
[368980787,1751422603271,-259.54981062,0.00017132,2]
[368980788,1751422603297,-500.0,0.00017132,2]
[368980789,1751422603321,-500.0,0.00017132,2]
[368980790,1751422603346,-508.32427852,0.00017132,2]
[368980791,1751422603372,-500.0,0.00017132,2]
[368980792,1751422603396,-528.05386944,0.00017132,2]
[368980793,1751422603421,-500.0,0.00017132,2]
[368980794,1751422603449,-500.0,0.00017132,2]
[368980795,1751422603477,-474.21566572,0.00017132,2]
[368980796,1751422603500,-373.30390901,0.00017132,2]
[368980797,1751422603525,-400.45715274,0.00017132,2]
[368980798,1751422603550,-500.0,0.00017132,2]
[368980799,1751422603574,-521.56870056,0.00017133,2]
[368980800,1751422603599,-460.0,0.00017133,2]
[368980801,1751422603624,-460.0,0.00017133,2]
[368980802,1751422603647,-460.0,0.00017133,2]
[368980803,1751422603669,-460.0,0.00017133,2]
[368980804,1751422603692,-460.0,0.00017133,2]
[368980805,1751422603729,-460.0,0.00017133,2]
[368980806,1751422603762,-460.0,0.00017133,2]
[368980807,1751422603790,-461.67037468,0.00017133,2]
[368980808,1751422603822,-460.0,0.00017133,2]
[368980809,1751422603853,-460.0,0.00017133,2]
[368980810,1751422603884,-460.0,0.00017133,2]
[368980811,1751422603917,-460.0,0.00017133,2]
[368980812,1751422603949,-460.0,0.00017134,2]
[368980813,1751422603979,-460.0,0.00017134,2]
[368980814,1751422604009,-158.45204201,0.00017134,2]
[368980815,1751422604042,-460.0,0.00017134,2]
[368980816,1751422604071,-460.0,0.00017134,2]
[368980817,1751422604097,-460.0,0.00017134,2]
[368980818,1751422604126,-460.0,0.00017134,2]
[368980819,1751422604157,-460.0,0.00017134,2]
[368980820,1751422604188,-460.0,0.00017134,2]
[368980821,1751422604219,-460.0,0.00017134,2]
[368980822,1751422604251,-460.0,0.00017134,2]
[368980823,1751422604278,-460.0,0.00017134,2]
[368980824,1751422604307,-460.0,0.00017134,2]
[368980825,1751422604339,-389.07416283,0.00017134,2]
[368980826,1751422604370,-460.0,0.00017134,2]
[368980827,1751422604399,-460.0,0.00017134,2]
[368980828,1751422604428,-590.1767392,0.00017134,2]
[368980829,1751422604456,-460.0,0.00017134,2]
[368980830,1751422604488,-460.0,0.00017134,2]
[368980831,1751422604519,-460.0,0.00017134,2]
[368980832,1751422604549,-460.0,0.00017134,2]
[368980833,1751422604577,-460.0,0.00017134,2]
[368980834,1751422604605,-460.0,0.00017134,2]
[368980835,1751422604638,-460.0,0.00017134,2]
[368980836,1751422604667,-460.0,0.00017134,2]
[368980837,1751422604697,-460.0,0.00017134,2]
[368980838,1751422604727,-460.0,0.00017134,2]
[368980839,1751422604755,-460.0,0.00017134,2]
[368980840,1751422604783,-460.0,0.00017134,2]
[368980841,1751422604810,-460.0,0.00017134,2]
[368980842,1751422604838,-460.0,0.00017134,2]
[368980843,1751422604868,-460.0,0.00017134,2]
[368980844,1751422604895,-472.52466931,0.00017134,2]
[368980845,1751422604923,-460.0,0.00017134,2]
[368980846,1751422604948,-460.0,0.00017134,2]
[368980847,1751422604973,-460.0,0.00017134,2]
[368980848,1751422604998,-568.6,0.00017134,2]
[368980849,1751422605023,-460.0,0.00017134,2]
[368980850,1751422605048,-460.0,0.00017134,2]
[368980851,1751422605071,-460.0,0.00017134,2]
[368980852,1751422605095,-460.0,0.00017134,2]
[368980853,1751422605118,-460.0,0.00017134,2]
[368980854,1751422605314,-460.0,0.00017134,2]
[368980855,1751422605344,-460.0,0.00017134,2]
[368980856,1751422605370,-460.0,0.00017134,2]
[368980857,1751422605395,-460.0,0.00017134,2]
[368980858,1751422605419,-224.15637119,0.00017134,2]
[368980859,1751422605443,-460.0,0.00017134,2]
[368980860,1751422605474,-565.07,0.00017134,2]
[368980861,1751422605498,-460.0,0.00017135,2]
[368980862,1751422605524,-460.0,0.00017135,2]
[368980863,1751422605552,-460.0,0.00017135,2]
[368980864,1751422605576,-466.19785938,0.00017135,2]
[368980865,1751422605602,-471.24627573,0.00017135,2]
[368980866,1751422605624,-460.0,0.00017135,2]
[368980867,1751422605648,-460.0,0.00017135,2]
[368980868,1751422605671,-460.0,0.00017135,2]
[368980869,1751422605693,-306.73662147,0.00017135,2]
[368980870,1751422605716,-482.25054702,0.00017407,2]
[368980871,1751422605740,-186.87856366,0.00017407,2]
[368980872,1751422605764,-450.47044829,0.00017407,2]
[368980873,1751422605786,-309.08029827,0.00017407,2]
[368980874,1751422605809,-460.0,0.00017407,2]
[368980875,1751422605832,-475.50952996,0.00017407,2]
[368980876,1751422605856,-429.52256047,0.00017407,2]
[368980877,1751422605879,-192.84619207,0.00017407,2]
[368980878,1751422605902,-460.0,0.00017407,2]
[368980879,1751422605926,-175.82999847,0.00017407,2]
[368980880,1751422605949,-460.0,0.00017407,2]
[368980881,1751422605972,-334.07997697,0.00017407,2]
[368980882,1751422605995,-460.0,0.00017407,2]
[368980883,1751422606021,-460.0,0.00017408,2]
[368980884,1751422606044,-460.0,0.00017408,2]
[368980885,1751422606069,-460.0,0.00017408,2]
[368980886,1751422606094,-460.0,0.00017408,2]
[368980887,1751422606118,-460.0,0.00017408,2]
[368980888,1751422606141,-460.0,0.00017408,2]
[368980889,1751422606165,-460.0,0.00017408,2]
[368980890,1751422606188,-460.0,0.00017408,2]
[368980891,1751422606212,-460.0,0.00017408,2]
[368980892,1751422606236,-460.0,0.00017408,2]
[368980893,1751422606260,-460.0,0.00017408,2]
[368980894,1751422606285,-460.0,0.00017408,2]
[368980895,1751422606310,-460.0,0.00017408,2]
[368980896,1751422606334,-460.0,0.00017408,2]
[368980897,1751422606359,-460.0,0.00017408,2]
[368980898,1751422606382,-460.0,0.00017408,2]
[368980899,1751422606407,-460.0,0.00017408,2]
[368980900,1751422606430,-460.0,0.00017408,2]
[368980901,1751422606453,-460.0,0.00017408,2]
[368980902,1751422606480,-460.0,0.00017408,2]
[368980903,1751422606505,-460.0,0.00017408,2]
[368980904,1751422606529,-460.0,0.00017408,2]
[368980905,1751422606556,-460.0,0.00017408,2]
[368980906,1751422606581,-460.0,0.00017408,2]
[368980907,1751422606607,-460.0,0.00017408,2]
[368980908,1751422606631,-460.0,0.00017408,2]
[368980909,1751422606656,-460.0,0.00017408,2]
[368980910,1751422606679,-460.0,0.00017408,2]
[368980911,1751422606705,-460.0,0.00017408,2]
[368980912,1751422606731,-460.0,0.00017408,2]
[368980913,1751422606756,-460.0,0.00017408,2]
[368980914,1751422606781,-460.0,0.00017408,2]
[368980915,1751422606807,-568.6,0.00017408,2]
[368980916,1751422606832,-460.0,0.00017408,2]
[368980917,1751422606857,-460.0,0.00017408,2]
[368980918,1751422606881,-460.0,0.00017408,2]
[368980919,1751422606905,-460.0,0.00017408,2]
[368980920,1751422606929,-460.0,0.00017408,2]
[368980921,1751422606954,-460.0,0.00017408,2]
[368980922,1751422606980,-460.0,0.00017408,2]
[368980923,1751422607004,-460.0,0.00017408,2]
[368980924,1751422607031,-460.0,0.00017408,2]
[368980925,1751422607056,-460.0,0.00017408,2]
[368980926,1751422607083,-565.07,0.00017408,2]
[368980927,1751422607107,-460.0,0.00017409,2]
[368980928,1751422607131,-478.77044246,0.00017409,2]
[368980929,1751422607155,-460.0,0.00017409,2]
[368980930,1751422607181,-460.0,0.00017681,2]
[368980931,1751422607205,-460.0,0.00017681,2]
[368980932,1751422607229,-460.0,0.00017681,2]
[368980933,1751422607253,-460.0,0.00017681,2]
[368980934,1751422607277,-460.0,0.00017682,2]
[368980935,1751422607301,-460.0,0.00017682,2]
[368980936,1751422607325,-460.0,0.00017682,2]
[368980937,1751422607349,-460.0,0.00017682,2]
[368980938,1751422607376,-460.0,0.00017682,2]
[368980939,1751422607399,-460.0,0.00017682,2]
[368980940,1751422607425,-460.0,0.00017682,2]
[368980941,1751422607449,-460.0,0.00017682,2]
[368980942,1751422607478,-460.0,0.00017682,2]
[368980943,1751422607503,-460.0,0.00017682,2]
[368980944,1751422607528,-460.0,0.00017682,2]
[368980945,1751422607553,-460.0,0.00017682,2]
[368980946,1751422607577,-460.0,0.00017682,2]
[368980947,1751422607602,-460.0,0.00017682,2]
[368980948,1751422607627,-460.0,0.00017682,2]
[368980949,1751422607651,-460.0,0.00017682,2]
[368980950,1751422607675,-460.0,0.00017682,2]
[368980951,1751422607700,-460.0,0.00017682,2]
[368980952,1751422607725,-460.0,0.00017682,2]
[368980953,1751422607755,-460.0,0.00017682,2]
[368980954,1751422607780,-460.0,0.00017682,2]
[368980955,1751422607805,-460.0,0.00017682,2]
[368980956,1751422607828,-460.0,0.00017682,2]
[368980957,1751422607852,-460.0,0.00017682,2]
[368980958,1751422607875,-460.0,0.00017682,2]
[368980959,1751422607899,-460.0,0.00017682,2]
[368980960,1751422607923,-460.0,0.00017682,2]
[368980961,1751422607948,-460.0,0.00017682,2]
[368980962,1751422607972,-460.0,0.00017682,2]
[368980963,1751422607997,-568.6,0.00017682,2]
[368980964,1751422608021,-460.0,0.00017682,2]
[368980965,1751422608046,-460.0,0.00017682,2]
[368980966,1751422608071,-460.0,0.00017682,2]
[368980967,1751422608096,-460.0,0.00017682,2]
[368980968,1751422608120,-460.0,0.00017682,2]
[368980969,1751422608145,-460.0,0.00017682,2]
[368980970,1751422608170,-460.0,0.00017682,2]
[368980971,1751422608194,-460.0,0.00017682,2]
[368980972,1751422608219,-460.0,0.00017682,2]
[368980973,1751422608244,-511.39,0.00017682,2]
[368980974,1751422608271,-565.07,0.00017682,2]
[368980975,1751422608295,-460.0,0.00017683,2]
[368980976,1751422608318,-460.0,0.00017683,2]
[368980977,1751422608341,-219.82,0.00017956,2]
[368980978,1751422608365,-550.56,0.00017956,2]
[368980979,1751422608391,-422.86,0.00017956,2]
[368980980,1751422608418,-460.0,0.00017956,2]
[368980981,1751422608443,-408.72,0.00017956,2]
[368980982,1751422608471,-460.0,0.00017956,2]
[368980983,1751422608500,-460.0,0.00017956,2]
[368980984,1751422608526,-460.0,0.00017956,2]
[368980985,1751422608555,-460.0,0.00017956,2]
[368980986,1751422608581,-460.0,0.00017956,2]
[368980987,1751422608606,-460.0,0.00017956,2]
[368980988,1751422608632,-460.0,0.00017956,2]
[368980989,1751422608658,-460.0,0.00017956,2]
[368980990,1751422608688,-460.0,0.00017956,2]
[368980991,1751422608713,-384.25,0.00017956,2]
[368980992,1751422608741,-460.0,0.00017956,2]
[368980993,1751422608893,-460.0,0.00017956,2]
[368980994,1751422608921,-460.0,0.00017956,2]
[368980995,1751422608948,-460.0,0.00017956,2]
[368980996,1751422608972,-286.5,0.00017956,2]
[368980997,1751422608998,-568.6,0.00017956,2]
[368980998,1751422609025,-460.0,0.00017956,2]
[368980999,1751422609050,-460.0,0.00017956,2]
[368981000,1751422609078,-432.13019392,0.00017956,2]
[368981001,1751422613703,500.0,0.00025138,60]
[368981002,1751422616015,237.94890992,0.0001833,6]
[368981003,1751422669514,1278.16631,0.00025138,60]
[368981004,1751422689564,1869.525303,0.00024649,120]
[368981006,1751422882343,1603.48872314,0.00016589,2]
[368981007,1751422882369,23296.51127686,0.00016589,2]
[368981008,1751422927089,5000.0,0.000168,2]
[368981009,1751422927381,1259.9345287,0.00016629,2]
[368981010,1751422942802,443.55419444,0.000168,2]
[368981011,1751422942825,2400.04922863,0.000168,2]
[368981012,1751423081801,-152.58932322,0.00017132,2]
[368981013,1751423081824,-16.22866928,0.00017133,2]
[368981014,1751423084087,-189.35706769,0.00017133,2]
[368981015,1751423086267,-151.1189796,0.00017133,2]
[368981016,1751423088522,-103.29528343,0.00017133,2]
[368981017,1751423088545,-59.95955871,0.00017133,2]
[368981018,1751423094047,-193.96505387,0.00017133,2]
[368981019,1751423153122,-208.52483704,0.00017033,2]
[368981020,1751423153153,-237.36149896,0.00017132,2]
[368981021,1751423227087,-257.70308939,0.00017132,2]
[368981023,1751423235081,-42.29691061,0.00017132,2]
[368981024,1751423235102,-217.53672946,0.00017133,2]
[368981025,1751423235122,-473.07973344,0.00017133,2]
[368981026,1751423235142,-167.54570662,0.00017133,2]
[368981027,1751423238098,-297.14437362,0.00017133,2]
[368981028,1751423238119,-463.91170691,0.00017133,2]
[368981029,1751423238141,-460.0,0.00017133,2]
[368981030,1751423238164,-460.0,0.00017133,2]
[368981031,1751423238186,-460.0,0.00017133,2]
[368981032,1751423238210,-460.0,0.00017133,2]
[368981033,1751423238232,-460.0,0.00017133,2]
[368981034,1751423238253,-180.66194877,0.00017133,2]
[368981035,1751423238274,-460.0,0.00017133,2]
[368981036,1751423238296,-460.0,0.00017133,2]
[368981037,1751423238319,-475.44095026,0.00017133,2]
[368981038,1751423238340,-460.0,0.00017133,2]
[368981039,1751423238361,-460.0,0.00017133,2]
[368981040,1751423238382,-467.89122894,0.00017133,2]
[368981041,1751423238403,-460.0,0.00017133,2]
[368981042,1751423238424,-469.46374903,0.00017133,2]
[368981043,1751423238445,-467.46196678,0.00017133,2]
[368981044,1751423238467,-65.24235044,0.00017133,2]
[368981053,1751423323999,3425.96869524,0.00025146,60]
[368981074,1751423432102,-500.0,0.00017132,2]
[368981076,1751423432112,-182.0,0.00017132,2]
[368981078,1751423432122,-500.0,0.00017132,2]
[368981080,1751423432131,-469.38975416,0.00017133,2]
[368981082,1751423432141,-460.0,0.00017133,2]
[368981084,1751423432151,-460.0,0.00017133,2]
[368981086,1751423432160,-460.0,0.00017133,2]
[368981088,1751423432169,-460.0,0.00017133,2]
[368981090,1751423432179,-460.0,0.00017133,2]
[368981093,1751423432189,-277.94353626,0.00017133,2]
[368981095,1751423432200,-182.05646374,0.00017133,2]
[368981097,1751423432209,-80.54710608,0.00017133,2]
[368981148,1751423435765,205.823182,0.00016366,2]
[368981153,1751423438003,-379.45289392,0.00017133,2]
[368981154,1751423438014,-460.0,0.00017133,2]
[368981155,1751423438024,-252.87297835,0.00017133,2]
[368981156,1751423438057,-1118.74702165,0.00017133,2]
[368981157,1751423438066,-460.0,0.00017133,2]
[368981158,1751423438076,-460.0,0.00017133,2]
[368981159,1751423438086,-460.0,0.00017133,2]
[368981160,1751423438097,-737.22,0.00017133,2]
[368981161,1751423438107,-460.0,0.00017133,2]
[368981162,1751423438117,-1052.09,0.00017133,2]
[368981163,1751423438127,-460.0,0.00017133,2]
[368981164,1751423438136,-460.0,0.00017133,2]
[368981165,1751423438145,-460.0,0.00017133,2]
[368981166,1751423438155,-1205.79,0.00017133,2]
[368981167,1751423438165,-1476.49,0.00017133,2]
[368981168,1751423438174,-460.0,0.00017134,2]
[368981169,1751423438184,-460.0,0.00017134,2]
[368981170,1751423438194,-553.01,0.00017134,2]
[368981171,1751423438204,-460.0,0.00017134,2]
[368981172,1751423438214,-460.0,0.00017134,2]
[368981173,1751423438223,-460.0,0.00017134,2]
[368981174,1751423438232,-460.0,0.00017134,2]
[368981175,1751423438242,-644.11,0.00017134,2]
[368981176,1751423438251,-460.0,0.00017134,2]
[368981177,1751423438260,-460.0,0.00017134,2]
[368981178,1751423438270,-460.0,0.00017134,2]
[368981179,1751423438279,-460.0,0.00017134,2]
[368981180,1751423438288,-460.0,0.00017134,2]
[368981181,1751423438297,-460.0,0.00017134,2]
[368981182,1751423438307,-553.02827666,0.00017134,2]
[368981183,1751423438317,-460.0,0.00017134,2]
[368981184,1751423438326,-460.0,0.00017134,2]
[368981185,1751423438335,-460.0,0.00017134,2]
[368981186,1751423438346,-462.08549024,0.00017135,2]
[368981187,1751423438356,-460.0,0.00017305,2]
[368981188,1751423438367,-924.7,0.00017305,2]
[368981189,1751423438377,-460.0,0.00017305,2]
[368981190,1751423438386,-460.0,0.00017305,2]